bitfinex-derivatives/quotes_BTCF0:USTF0_20250119
["timestamp","ask_amount","ask_price","bid_price","bid_amount"]
[1737267326257,0.047587,105180.0,105170.0,0.45831409]
[1737267326451,0.05552654,105180.0,105170.0,0.45831409]
[1737267330163,0.10545663,105180.0,105170.0,0.45831409]
[1737267330457,0.05552654,105180.0,105170.0,0.74166943]
[1737267331054,0.51618672,105180.0,105170.0,0.28335534]
[1737267331254,0.63948672,105180.0,105170.0,0.28335534]
[1737267333265,0.63948672,105180.0,105160.0,0.17000888]
[1737267333266,0.8099304,105180.0,105160.0,0.17000888]
[1737267333563,0.45832209,105170.0,105160.0,0.17000888]
[1737267334657,0.60092125,105170.0,105160.0,0.17000888]
[1737267337272,0.047596,105160.0,105150.0,0.44428639]
[1737267337463,0.13942609,105160.0,105150.0,0.44428639]
[1737267340284,0.13942609,105160.0,105150.0,0.21760788]
[1737267345482,0.14744656,105160.0,105150.0,0.21760788]
[1737267347284,0.14744656,105160.0,105150.0,0.17000888]
[1737267347491,0.14744656,105160.0,105140.0,0.92881664]
[1737267347492,0.047601,105150.0,105140.0,0.92881664]
[1737267347678,0.09753109,105150.0,105140.0,0.92881664]
[1737267350190,0.09753109,105150.0,105140.0,0.97874673]
[1737267350487,0.09753109,105150.0,105140.0,0.92881664]
[1737267351489,0.09753109,105150.0,105140.0,0.97874673]
[1737267354590,0.09753109,105150.0,105140.0,0.80873785]
[1737267356993,0.09753109,105150.0,105140.0,1.0421631]
[1737267358094,0.09753109,105150.0,105140.0,1.17292725]
[1737267359192,0.09753109,105150.0,105140.0,1.22285734]
[1737267361601,0.09753109,105150.0,105140.0,1.51266601]
[1737267363699,0.09753109,105150.0,105140.0,1.17292725]
[1737267364093,0.09753109,105150.0,105140.0,1.22285734]
[1737267365202,0.09753109,105150.0,105140.0,1.17292725]
[1737267366008,0.09753109,105150.0,105140.0,1.51266601]
[1737267370109,0.09753109,105150.0,105140.0,1.22931067]
[1737267371312,0.09753109,105150.0,105140.0,1.27924076]
[1737267371514,0.047601,105150.0,105140.0,1.27924076]
[1737267371709,0.15061963,105160.0,105150.0,0.047601]
[1737267372011,0.15061963,105160.0,105150.0,0.45833109]
[1737267372410,0.00802047,105160.0,105150.0,1.43914798]
[1737267372712,0.24012325,105170.0,105160.0,0.047596]
[1737267373208,0.24839137,105170.0,105160.0,0.047596]
[1737267373511,0.24839137,105170.0,105160.0,0.91549393]
[1737267375014,0.24839137,105170.0,105160.0,0.55805127]
[1737267376203,0.24839137,105170.0,105160.0,0.2744158]
[1737267379212,0.10579221,105170.0,105160.0,0.2744158]
[1737267380712,0.10579221,105170.0,105160.0,0.32434589]
[1737267381108,0.10579221,105170.0,105160.0,0.2744158]
[1737267382117,0.10579221,105170.0,105160.0,0.44433382]
[1737267384114,0.10579221,105170.0,105160.0,0.49426391]
[1737267384417,0.24839137,105170.0,105160.0,0.49426391]
[1737267386828,0.24839137,105170.0,105160.0,0.44433382]
[1737267386829,0.60919137,105170.0,105160.0,0.44433382]
[1737267388219,0.60919137,105170.0,105160.0,0.39673782]
[1737267388422,0.65239137,105170.0,105160.0,0.16991802]
[1737267389615,0.047596,105160.0,105150.0,0.16991802]
[1737267389815,0.53922609,105160.0,105150.0,0.16991802]
[1737267390922,0.68183991,105160.0,105150.0,0.16991802]
[1737267392525,0.68183991,105160.0,105150.0,0.39673782]
[1737267394324,0.68183991,105160.0,105150.0,0.44433882]
[1737267397227,0.68183991,105160.0,105150.0,0.49426891]
[1737267397928,0.53922609,105160.0,105150.0,0.49426891]
[1737267398626,0.53922609,105160.0,105150.0,0.44433882]
[1737267400728,0.68183991,105160.0,105150.0,0.44433882]
[1737267407523,0.53922609,105160.0,105150.0,0.44433882]
[1737267410227,0.36452562,105170.0,105150.0,0.49426891]
[1737267410433,0.41884871,105170.0,105160.0,0.047596]
[1737267411734,0.24840503,105170.0,105160.0,0.44433382]
[1737267412431,0.60920503,105170.0,105160.0,0.44433382]
[1737267414335,0.60920503,105170.0,105160.0,0.2744158]
[1737267417641,0.60920503,105170.0,105160.0,0.44432609]
[1737267419842,0.65030503,105170.0,105160.0,0.39673009]
[1737267420242,0.82074871,105170.0,105160.0,0.16991029]
[1737267422033,0.67813489,105170.0,105150.0,0.44433009]
[1737267422336,0.49752609,105160.0,105150.0,0.44433009]
[1737267423336,0.64023711,105160.0,105150.0,0.2744198]
[1737267429451,0.64023711,105160.0,105150.0,0.91475835]
[1737267431454,0.49752609,105160.0,105150.0,0.91475835]
[1737267432955,0.64023711,105160.0,105150.0,0.55805527]
[1737267436458,0.68223711,105160.0,105150.0,0.2744198]
[1737267437557,0.63230702,105160.0,105150.0,0.2744198]
[1737267437858,0.27150702,105160.0,105150.0,0.2744198]
[1737267438059,0.63230702,105160.0,105150.0,0.2744198]
[1737267438262,0.68223711,105160.0,105150.0,0.2744198]
[1737267438653,0.63230702,105160.0,105150.0,0.2744198]
[1737267439156,0.27150702,105160.0,105150.0,0.2744198]
[1737267439359,0.32143711,105160.0,105150.0,0.2744198]
[1737267440460,0.27150702,105160.0,105150.0,0.2744198]
[1737267440757,0.22950702,105160.0,105150.0,0.2744198]
[1737267441560,0.59030702,105160.0,105150.0,0.2744198]
[1737267442253,0.64023711,105160.0,105150.0,0.2744198]
[1737267442449,0.49752609,105160.0,105150.0,0.2744198]
[1737267442860,0.447596,105160.0,105150.0,0.2744198]
[1737267443361,0.086796,105160.0,105150.0,0.2744198]
[1737267443760,0.22950702,105160.0,105150.0,0.2744198]
[1737267444066,0.59030702,105160.0,105150.0,0.2744198]
[1737267444454,0.22950702,105160.0,105150.0,0.2744198]
[1737267444754,0.59030702,105160.0,105150.0,0.2744198]
[1737267444955,0.49752609,105160.0,105150.0,0.0476]
[1737267447770,0.64023711,105160.0,105150.0,0.5578329]
[1737267448064,0.22950702,105160.0,105150.0,0.5578329]
[1737267448266,0.19030702,105160.0,105150.0,0.5578329]
[1737267449158,0.19030702,105160.0,105150.0,0.6882743]
[1737267450668,0.14271102,105160.0,105150.0,0.69691098]
[1737267450857,0.19264111,105160.0,105150.0,0.69691098]
[1737267452073,0.14271102,105160.0,105150.0,0.69691098]
[1737267453567,0.14271102,105160.0,105150.0,0.74684107]
[1737267453973,0.14271102,105160.0,105150.0,1.10764107]
[1737267454272,0.14271102,105160.0,105150.0,1.14694107]
[1737267455679,0.29060223,105170.0,105160.0,0.047596]
[1737267457168,0.29060223,105170.0,105160.0,0.44397845]
[1737267459679,0.65140223,105170.0,105160.0,0.44397845]
[1737267463782,0.29060223,105170.0,105160.0,0.44397845]
[1737267465076,0.65140223,105170.0,105160.0,0.44397845]
[1737267466378,0.69140223,105170.0,105160.0,0.44397845]
[1737267468883,0.33060223,105170.0,105160.0,0.44397845]
[1737267469183,0.69140223,105170.0,105160.0,0.44397845]
[1737267474485,0.64147214,105170.0,105160.0,0.44397845]
[1737267474786,0.69140223,105170.0,105160.0,0.44397845]
[1737267475084,0.86184591,105170.0,105160.0,0.21747419]
[1737267476388,0.6692048,105170.0,105160.0,0.21747419]
[1737267477177,0.71913489,105170.0,105160.0,0.21747419]
[1737267477697,0.71913489,105170.0,105160.0,0.047596]
[1737267477891,0.54869121,105170.0,105160.0,0.27410026]
[1737267479283,0.69145879,105170.0,105160.0,0.27410026]
[1737267479679,0.69145879,105170.0,105160.0,0.22650426]
[1737267481781,1.10218888,105170.0,105160.0,0.22650426]
[1737267482084,1.10218888,105170.0,105140.0,0.33973876]
[1737267482085,0.047601,105150.0,105140.0,0.33973876]
[1737267482388,0.50826118,105150.0,105140.0,0.33973876]
[1737267482691,0.54516118,105150.0,105140.0,0.33973876]
[1737267483092,0.68792876,105150.0,105140.0,0.64147475]
[1737267484385,0.68792876,105150.0,105140.0,0.16988882]
[1737267486788,0.69676948,105150.0,105140.0,0.16988882]
[1737267487785,0.5540019,105150.0,105140.0,0.16988882]
[1737267489094,0.1932019,105150.0,105140.0,0.21749382]
[1737267489490,0.14327181,105150.0,105140.0,0.21749382]
[1737267489693,0.50407181,105150.0,105140.0,0.21749382]
[1737267492699,0.14327181,105150.0,105140.0,0.21749382]
[1737267493100,0.5540019,105150.0,105140.0,0.21749382]
[1737267493296,0.1932019,105150.0,105140.0,0.21749382]
[1737267494193,0.5540019,105150.0,105140.0,0.21749382]
[1737267494797,0.5540019,105150.0,105130.0,0.28337661]
[1737267494994,0.53583509,105140.0,105130.0,0.28337661]
[1737267496200,0.04761,105130.0,105120.0,0.08662174]
[1737267496401,0.09754009,105130.0,105120.0,0.08662174]
[1737267497603,0.09754009,105130.0,105120.0,0.04912174]
[1737267500304,0.10635754,105130.0,105120.0,0.04912174]
[1737267517008,0.51708763,105130.0,105120.0,8.209e-05]
[1737267517202,0.047614,105120.0,105110.0,0.28337661]
[1737267517405,0.047619,105110.0,105100.0,0.1]
[1737267517604,0.49904909,105110.0,105100.0,0.1]
[1737267520313,0.64181667,105110.0,105100.0,0.1]
[1737267527613,0.70076996,105110.0,105080.0,0.14114403]
[1737267527813,0.45835809,105090.0,105080.0,0.10304403]
[1737267528021,0.45835809,105090.0,105080.0,0.11793442]
[1737267528522,0.09755809,105090.0,105080.0,0.11793442]
[1737267529322,0.50828818,105090.0,105070.0,0.085236]
[1737267529520,0.09756209,105080.0,105070.0,0.085236]
[1737267530228,0.09756209,105080.0,105070.0,0.446036]
[1737267530627,0.09756209,105080.0,105070.0,0.49596609]
[1737267531923,0.09756209,105080.0,105070.0,0.446036]
[1737267534226,0.09756209,105080.0,105070.0,0.085236]
[1737267538232,0.13696209,105080.0,105070.0,0.085236]
[1737267538638,0.13696209,105080.0,105070.0,0.047636]
[1737267539037,0.047637,105070.0,105060.0,0.49690958]
[1737267539237,0.09756709,105070.0,105060.0,0.49690958]
[1737267539427,0.09756709,105070.0,105060.0,0.13610958]
[1737267539629,0.09756709,105070.0,105060.0,0.127039]
[1737267540737,0.09756709,105070.0,105060.0,0.17696909]
[1737267541239,0.09756709,105070.0,105060.0,0.127039]
[1737267541540,0.09756709,105070.0,105060.0,0.14193172]
[1737267545841,0.10673999,105070.0,105060.0,0.14193172]
[1737267546634,0.10673999,105070.0,105060.0,0.36847735]
[1737267548738,0.09756709,105070.0,105060.0,0.36847735]
[1737267549043,0.13696309,105080.0,105070.0,0.047637]
[1737267549748,0.13696309,105080.0,105070.0,0.06252972]
[1737267550850,0.1460508,105080.0,105070.0,0.06252972]
[1737267551652,0.1460508,105080.0,105070.0,0.28907535]
[1737267558673,0.1460508,105080.0,105070.0,0.33900544]
[1737267558964,0.1460508,105080.0,105070.0,0.28907535]
[1737267560475,0.1460508,105080.0,105070.0,0.06252972]
[1737267561772,0.1460508,105080.0,105070.0,0.2897505]
[1737267565269,0.28881111,105080.0,105070.0,0.2897505]
[1737267565471,0.2403234,105080.0,105070.0,0.70048059]
[1737267565674,0.2403234,105080.0,105070.0,0.73878059]
[1737267566276,0.14276031,105080.0,105070.0,0.73878059]
[1737267567075,0.17131237,105090.0,105080.0,0.047632]
[1737267567377,0.17131237,105090.0,105080.0,0.53406209]
[1737267567678,0.27794054,105100.0,105080.0,0.48643009]
[1737267567878,0.27794054,105100.0,105090.0,0.047628]
[1737267568172,0.27794054,105100.0,105090.0,0.09755809]
[1737267568871,0.27794054,105100.0,105090.0,0.047628]
[1737267569272,0.10662817,105100.0,105090.0,0.09755809]
[1737267571972,0.10662817,105100.0,105090.0,0.047628]
[1737267575880,0.14462817,105100.0,105090.0,0.047628]
[1737267582182,0.047628,105090.0,105080.0,0.27485278]
[1737267582373,0.53435809,105090.0,105080.0,0.27485278]
[1737267582576,0.17355809,105090.0,105080.0,0.27485278]
[1737267582785,0.17355809,105090.0,105080.0,0.28974315]
[1737267584085,0.17355809,105090.0,105080.0,0.06252237]
[1737267587983,0.17355809,105090.0,105080.0,0.28974315]
[1737267591682,0.22348818,105090.0,105080.0,0.28974315]
[1737267592081,0.58428818,105090.0,105080.0,0.28974315]
[1737267593789,0.22348818,105090.0,105080.0,0.28974315]
[1737267593979,0.58428818,105090.0,105080.0,0.27485278]
[1737267594487,0.17355809,105090.0,105080.0,0.27485278]
[1737267595180,0.17355809,105090.0,105080.0,0.2897439]
[1737267595384,0.22348818,105090.0,105080.0,0.06252312]
[1737267595588,0.17355809,105090.0,105080.0,0.06252312]
[1737267596296,0.58428818,105090.0,105080.0,0.06252312]
[1737267596495,0.22348818,105090.0,105080.0,0.06252312]
[1737267596994,0.58428818,105090.0,105080.0,0.06252312]
[1737267597182,0.22348818,105090.0,105080.0,0.06252312]
[1737267597382,0.58428818,105090.0,105080.0,0.06252312]
[1737267597594,0.72706566,105090.0,105080.0,0.06252312]
[1737267597990,0.36626566,105090.0,105080.0,0.06252312]
[1737267598189,0.72706566,105090.0,105080.0,0.06252312]
[1737267598782,0.72706566,105090.0,105080.0,0.04782539]
[1737267599197,0.72706566,105090.0,105080.0,0.00019339]
[1737267600000,0.72706566,105090.0,105080.0,0.04782539]
[1737267600184,0.72706566,105090.0,105080.0,0.06271658]
[1737267600185,0.53757803,105090.0,105080.0,0.06271658]
[1737267600389,0.48764794,105090.0,105080.0,0.06271658]
[1737267601004,0.84844794,105090.0,105080.0,0.06271658]
[1737267601395,0.67713557,105090.0,105080.0,0.06271658]
[1737267601895,0.72706566,105090.0,105080.0,0.06271658]
[1737267602598,0.72706566,105090.0,105080.0,0.28993736]
[1737267603199,0.72706566,105090.0,105080.0,0.27504617]
[1737267604702,0.72706566,105090.0,105080.0,0.28993738]
[1737267608002,0.67713557,105090.0,105080.0,0.28993738]
[1737267610604,0.31633557,105090.0,105080.0,0.28993738]
[1737267610798,0.67713557,105090.0,105080.0,0.28993738]
[1737267611795,0.14277748,105090.0,105080.0,0.28993738]
[1737267611994,0.14277748,105090.0,105080.0,0.77616747]
[1737267612189,0.24033557,105090.0,105080.0,0.72623738]
[1737267612396,0.24033557,105090.0,105080.0,0.35054617]
[1737267612890,0.09755809,105090.0,105080.0,0.76738399]
[1737267613700,0.24033557,105090.0,105080.0,0.13821538]
[1737267615092,0.24033557,105090.0,105080.0,0.36540073]
[1737267616205,0.09755809,105090.0,105080.0,0.64942671]
[1737267617402,0.09755809,105090.0,105080.0,1.01022671]
[1737267617703,0.09755809,105090.0,105080.0,0.64942671]
[1737267617909,0.24033557,105090.0,105080.0,0.36540073]
[1737267618204,0.24033557,105090.0,105080.0,0.41533082]
[1737267618600,0.24033557,105090.0,105080.0,0.77613082]
[1737267619307,0.24033557,105090.0,105080.0,0.76124083]
[1737267619708,0.24033557,105090.0,105080.0,0.40044083]
[1737267620297,0.24033557,105090.0,105080.0,0.77613118]
[1737267620608,0.24033557,105090.0,105080.0,0.41533118]
[1737267622105,0.24033557,105090.0,105080.0,0.36540109]
[1737267624208,0.09755809,105090.0,105080.0,0.13821574]
[1737267626515,0.09755809,105090.0,105080.0,0.18814583]
[1737267630507,0.09755809,105090.0,105080.0,0.10091574]
[1737267631213,0.047628,105090.0,105080.0,0.10091574]
[1737267632211,0.09755809,105090.0,105080.0,0.10091574]
[1737267634618,0.047628,105090.0,105080.0,0.10091574]
[1737267635517,0.09755809,105090.0,105080.0,0.10091574]
[1737267636314,0.09755809,105090.0,105080.0,0.08602539]
[1737267636713,0.09755809,105090.0,105080.0,0.37005137]
[1737267636919,0.047628,105090.0,105080.0,0.78078146]
[1737267637308,0.18985056,105100.0,105080.0,0.78078146]
[1737267637509,0.14277748,105100.0,105090.0,0.09755809]
[1737267637818,0.14277748,105100.0,105090.0,0.17105809]
[1737267638412,0.14277748,105100.0,105090.0,0.53185809]
[1737267639318,0.14277748,105100.0,105090.0,0.75886335]
[1737267640917,0.14277748,105100.0,105090.0,0.70893326]
[1737267641219,0.29676287,105110.0,105100.0,0.047623]
[1737267642122,0.29676287,105110.0,105100.0,0.44477677]
[1737267643425,0.29676287,105110.0,105100.0,0.21777151]
[1737267644718,0.29676287,105110.0,105100.0,0.2677016]
[1737267645123,0.29676287,105110.0,105100.0,0.21777151]
[1737267645324,0.29676287,105110.0,105100.0,0.2677016]
[1737267645921,0.29676287,105110.0,105100.0,0.21777151]
[1737267648022,0.29676287,105110.0,105100.0,0.2677016]
[1737267648223,0.15398539,105110.0,105100.0,0.44477677]
[1737267649226,0.04724717,105110.0,105100.0,0.85550686]
[1737267649424,0.54037748,105120.0,105100.0,0.89520686]
[1737267649629,0.59030757,105120.0,105110.0,0.09754909]
[1737267650231,0.22950757,105120.0,105110.0,0.45834909]
[1737267650733,0.08673009,105120.0,105110.0,0.6284976]
[1737267651433,0.0368,105120.0,105110.0,0.6284976]
[1737267651823,0.77243094,105130.0,105120.0,0.047614]
[1737267652135,0.60111857,105130.0,105120.0,0.047614]
[1737267652431,0.61050336,105130.0,105120.0,0.047614]
[1737267652727,0.61050336,105130.0,105120.0,0.45834409]
[1737267652728,0.15216227,105130.0,105120.0,0.45834409]
[1737267652933,0.24970236,105130.0,105120.0,0.45834409]
[1737267653235,0.10692488,105130.0,105120.0,0.57856251]
[1737267653534,0.10692488,105130.0,105120.0,0.6284926]
[1737267654140,0.10692488,105130.0,105120.0,0.2676926]
[1737267654436,0.10692488,105130.0,105120.0,0.09754409]
[1737267657237,0.10692488,105130.0,105120.0,0.047614]
[1737267661135,0.047614,105120.0,105110.0,0.57856551]
[1737267661331,0.13594409,105120.0,105110.0,0.6284956]
[1737267664041,0.0384,105120.0,105110.0,0.6284956]
[1737267664637,0.08833009,105120.0,105110.0,0.6284956]
[1737267664838,0.0384,105120.0,105110.0,0.85550086]
[1737267665538,0.0384,105120.0,105110.0,0.89120086]
[1737267667145,0.08833009,105120.0,105110.0,0.89120086]
[1737267667445,0.13594409,105120.0,105110.0,0.85550086]
[1737267667747,0.17134409,105120.0,105110.0,0.85550086]
[1737267668249,0.12373009,105120.0,105110.0,0.85550086]
[1737267668850,0.0738,105120.0,105110.0,0.85550086]
[1737267669035,0.0738,105120.0,105110.0,0.68535235]
[1737267669447,0.0384,105120.0,105110.0,0.68535235]
[1737267669651,0.0384,105120.0,105110.0,0.72125235]
[1737267670543,0.24970436,105130.0,105120.0,0.047614]
[1737267670754,0.28490436,105130.0,105120.0,0.047614]
[1737267671649,0.28490436,105130.0,105120.0,0.21757467]
[1737267672947,0.23497427,105130.0,105120.0,0.26750476]
[1737267673536,0.17797748,105130.0,105120.0,0.62830476]
[1737267673738,0.14277748,105130.0,105120.0,0.71403485]
[1737267674153,0.14277748,105130.0,105120.0,0.54407418]
[1737267674655,0.14277748,105130.0,105120.0,0.49414409]
[1737267675542,0.22124246,105140.0,105130.0,0.04761]
[1737267675543,0.04993009,105140.0,105130.0,0.04761]
[1737267675746,0.04993009,105140.0,105130.0,0.40841]
[1737267675948,0.04993009,105140.0,105130.0,0.45834009]
[1737267676552,0.45833509,105140.0,105130.0,0.44394907]
[1737267676851,0.49353509,105140.0,105130.0,0.44394907]
[1737267677259,0.53213509,105140.0,105130.0,0.44394907]
[1737267677449,0.53213509,105140.0,105130.0,0.39633907]
[1737267677648,0.53213509,105140.0,105130.0,0.1698596]
[1737267679062,0.04761,105130.0,105120.0,0.49388216]
[1737267679246,0.13474009,105130.0,105120.0,0.49388216]
[1737267679451,0.13474009,105130.0,105120.0,0.44395207]
[1737267679648,0.49554009,105130.0,105120.0,0.44395207]
[1737267681160,0.63831757,105130.0,105120.0,0.2174726]
[1737267683359,0.65606289,105130.0,105120.0,0.2174726]
[1737267684354,0.58838748,105130.0,105120.0,0.2174726]
[1737267684555,0.65606289,105130.0,105120.0,0.2174726]
[1737267684754,0.66553842,105130.0,105120.0,0.2174726]
[1737267685648,0.30473842,105130.0,105120.0,0.2174726]
[1737267689560,0.23706301,105130.0,105120.0,0.2174726]
[1737267691458,0.23706301,105130.0,105120.0,0.5782726]
[1737267691657,0.23706301,105130.0,105120.0,0.2174726]
[1737267691860,0.23706301,105130.0,105120.0,0.5782726]
[1737267692059,0.23706301,105130.0,105120.0,0.6132726]
[1737267692456,0.23706301,105130.0,105120.0,0.2524726]
[1737267692860,0.23706301,105130.0,105120.0,0.6132726]
[1737267693158,0.09428553,105130.0,105120.0,0.66989247]
[1737267697962,0.09428553,105130.0,105120.0,0.30909247]
[1737267698169,0.09428553,105130.0,105120.0,0.66989247]
[1737267700059,0.04667553,105130.0,105120.0,0.66989247]
[1737267705371,0.09663556,105130.0,105120.0,0.66989247]
[1737267707472,0.09663556,105130.0,105120.0,0.443413]
[1737267708574,0.23941304,105130.0,105120.0,0.443413]
[1737267709874,0.18945301,105130.0,105120.0,0.72063364]
[1737267711174,0.14277748,105130.0,105120.0,0.72063364]
[1737267711373,0.14277748,105130.0,105120.0,0.67067361]
[1737267711567,0.19273751,105130.0,105120.0,0.72063364]
[1737267712264,0.19273751,105130.0,105120.0,0.35983364]
[1737267712461,0.60115151,105130.0,105120.0,0.30987361]
[1737267713472,0.63655151,105130.0,105120.0,0.27487361]
[1737267714068,0.63655151,105130.0,105120.0,0.22726061]
[1737267714274,0.047619,105120.0,105110.0,0.28402598]
[1737267714478,0.57813906,105120.0,105110.0,0.28402598]
[1737267715575,0.72091654,105120.0,105110.0,0.17049629]
[1737267717374,0.047624,105110.0,105100.0,0.21955021]
[1737267717575,0.49578403,105110.0,105100.0,0.21955021]
[1737267718078,0.3982,105110.0,105100.0,0.26951024]
[1737267718278,0.08736003,105110.0,105100.0,0.26951024]
[1737267718877,0.22994252,105110.0,105100.0,0.09901395]
[1737267719080,0.59074252,105110.0,105100.0,0.04905392]
[1737267719382,0.60848266,105110.0,105100.0,0.04905392]
[1737267720081,0.54078249,105110.0,105100.0,0.04905392]
[1737267720282,0.3982,105110.0,105100.0,0.21955021]
[1737267720782,0.46590017,105110.0,105100.0,0.21955021]
[1737267723084,0.10510017,105110.0,105100.0,0.21955021]
[1737267724484,0.46590017,105110.0,105100.0,0.21955021]
[1737267726686,0.46590017,105110.0,105100.0,0.04905392]
[1737267727885,0.46590017,105110.0,105100.0,0.21955021]
[1737267728686,0.51352417,105110.0,105100.0,0.21955021]
[1737267730678,0.51352417,105110.0,105100.0,0.04905392]
[1737267733490,0.445824,105110.0,105100.0,0.04905392]
[1737267736091,0.445824,105110.0,105100.0,0.21955021]
[1737267737092,0.085024,105110.0,105100.0,0.21955021]
[1737267737296,0.445824,105110.0,105100.0,0.21955021]
[1737267738092,0.408424,105110.0,105100.0,0.28725038]
[1737267738277,0.408424,105110.0,105100.0,0.35765038]
[1737267739186,0.18677058,105120.0,105110.0,0.047624]
[1737267739389,0.15217058,105120.0,105110.0,0.408424]
[1737267739587,0.19978958,105120.0,105110.0,0.047624]
[1737267739788,0.26748975,105120.0,105110.0,0.047624]
[1737267740186,0.19978958,105120.0,105110.0,0.047624]
[1737267740389,0.56058958,105120.0,105110.0,0.047624]
[1737267741395,0.61056056,105120.0,105110.0,0.047624]
[1737267741586,0.61056056,105120.0,105110.0,0.21812029]
[1737267741587,0.46797807,105120.0,105110.0,0.21812029]
[1737267742987,0.46797807,105120.0,105110.0,0.26809127]
[1737267743188,0.04997098,105120.0,105110.0,0.26809127]
[1737267743387,0.41077098,105120.0,105110.0,0.26809127]
[1737267743593,0.63596947,105130.0,105110.0,0.22046727]
[1737267743798,0.63596947,105130.0,105120.0,0.047619]
[1737267744098,0.49338698,105130.0,105120.0,0.047619]
[1737267744597,0.50295831,105130.0,105120.0,0.047619]
[1737267745296,0.67427068,105130.0,105120.0,0.047619]
[1737267746988,0.67427068,105130.0,105120.0,0.09758998]
[1737267746989,0.5766837,105130.0,105120.0,0.09758998]
[1737267747189,0.62665468,105130.0,105120.0,0.09758998]
[1737267747699,0.62665468,105130.0,105120.0,0.047619]
[1737267749491,0.59800434,105130.0,105120.0,0.21795746]
[1737267750699,0.59800434,105130.0,105120.0,0.26792844]
[1737267751298,0.54803336,105130.0,105120.0,0.26792844]
[1737267752402,0.59564736,105130.0,105120.0,0.26792844]
[1737267754006,0.54803336,105130.0,105120.0,0.26792844]
[1737267754204,0.53846203,105130.0,105120.0,0.26792844]
[1737267755705,0.53846203,105130.0,105120.0,0.30522844]
[1737267756091,0.17766203,105130.0,105120.0,0.30522844]
[1737267756294,0.035,105130.0,105120.0,0.30522844]
[1737267758604,0.035,105130.0,105120.0,0.3144784]
[1737267758904,0.035,105130.0,105120.0,0.72524938]
[1737267759100,0.035,105130.0,105120.0,0.3490784]
[1737267759305,0.08497098,105130.0,105120.0,0.3490784]
[1737267759507,0.035,105130.0,105120.0,0.3490784]
[1737267761199,0.3958,105130.0,105120.0,0.3490784]
[1737267763403,0.035,105130.0,105120.0,0.3490784]
[1737267764104,0.49338498,105130.0,105120.0,0.21795746]
[1737267765711,0.63604701,105130.0,105120.0,0.047619]
[1737267767215,0.80735938,105130.0,105120.0,0.047619]
[1737267769604,0.63604701,105130.0,105120.0,0.21795746]
[1737267779420,0.63604701,105130.0,105120.0,0.26792844]
[1737267779829,0.80735938,105130.0,105120.0,0.26792844]
[1737267781627,0.63604701,105130.0,105120.0,0.26792844]
[1737267782522,0.61472637,105130.0,105120.0,0.26792844]
[1737267782726,0.66469735,105130.0,105120.0,0.26792844]
[1737267783123,0.61472637,105130.0,105120.0,0.26792844]
[1737267783429,0.66469735,105130.0,105120.0,0.26792844]
[1737267786629,0.63612208,105130.0,105120.0,0.26792844]
[1737267787822,0.63612208,105130.0,105120.0,0.21795746]
[1737267789934,0.63612208,105130.0,105120.0,0.27468004]
[1737267791534,0.63612208,105130.0,105120.0,0.32465102]
[1737267792734,0.63612208,105130.0,105120.0,0.27468004]
[1737267793431,0.63612208,105130.0,105120.0,0.32465102]
[1737267794027,0.63612208,105130.0,105120.0,0.49502364]
[1737267794228,0.5861511,105130.0,105120.0,0.49502364]
[1737267795143,0.5861511,105130.0,105120.0,0.32465102]
[1737267796532,0.63612208,105130.0,105120.0,0.32465102]
[1737267797738,0.66469735,105130.0,105120.0,0.49505846]
[1737267798630,0.61472637,105130.0,105120.0,0.49505846]
[1737267799423,0.25392637,105130.0,105120.0,0.49505846]
[1737267799829,0.61472637,105130.0,105120.0,0.49505846]
[1737267800235,0.25392637,105130.0,105120.0,0.49505846]
[1737267800438,0.61472637,105130.0,105120.0,0.49505846]
[1737267802526,0.66469735,105130.0,105120.0,0.44508748]
[1737267803443,0.61472637,105130.0,105120.0,0.26799742]
[1737267804838,0.58625167,105130.0,105120.0,0.32465102]
[1737267805336,0.63622265,105130.0,105120.0,0.27468004]
[1737267805738,0.58625167,105130.0,105120.0,0.32465102]
[1737267806538,0.63622265,105130.0,105120.0,0.27468004]
[1737267806734,0.58625167,105130.0,105120.0,0.32465102]
[1737267808224,0.58625167,105130.0,105120.0,0.27468004]
[1737267810435,0.14283767,105130.0,105120.0,0.735422]
[1737267810626,0.14283767,105130.0,105120.0,0.844822]
[1737267812039,0.31415004,105140.0,105130.0,0.047614]
[1737267812234,0.31415004,105140.0,105130.0,0.09758498]
[1737267813040,0.67495004,105140.0,105130.0,0.09758498]
[1737267813238,0.50363767,105140.0,105130.0,0.49467316]
[1737267814342,0.55360865,105140.0,105130.0,0.49467316]
[1737267814544,0.60121865,105140.0,105130.0,0.44470218]
[1737267816336,0.60121865,105140.0,105130.0,0.49467316]
[1737267818438,0.55124767,105140.0,105130.0,0.49467316]
[1737267818945,0.60121865,105140.0,105130.0,0.44470218]
[1737267819146,0.63531865,105140.0,105130.0,0.44470218]
[1737267819935,0.63531865,105140.0,105130.0,0.49467316]
[1737267820137,0.63531865,105140.0,105130.0,0.09758498]
[1737267820331,0.63531865,105140.0,105130.0,0.047614]
[1737267822548,0.67041865,105140.0,105130.0,0.047614]
[1737267822840,0.62280865,105140.0,105120.0,0.22690753]
[1737267823047,0.49508498,105130.0,105120.0,0.27452553]
[1737267823936,0.80923502,105130.0,105120.0,0.21777689]
[1737267825846,0.80923502,105130.0,105120.0,0.047618]
[1737267826244,0.80923502,105130.0,105120.0,0.09758898]
[1737267826561,0.80923502,105130.0,105120.0,0.047618]
[1737267827550,0.63792265,105130.0,105120.0,0.21777689]
[1737267828039,0.63792265,105130.0,105120.0,0.26774787]
[1737267828439,0.17953767,105130.0,105120.0,0.26774787]
[1737267829354,0.22950865,105130.0,105120.0,0.26774787]
[1737267829944,0.22950865,105130.0,105120.0,0.32449651]
[1737267830248,0.08667098,105130.0,105120.0,0.32449651]
[1737267831246,0.22950865,105130.0,105120.0,0.32449651]
[1737267831842,0.59030865,105130.0,105120.0,0.27452553]
[1737267832043,0.44747098,105130.0,105120.0,0.27452553]
[1737267833150,0.59030865,105130.0,105120.0,0.32449651]
[1737267833351,0.17953767,105130.0,105120.0,0.32449651]
[1737267834353,0.0367,105130.0,105120.0,0.32449651]
[1737267835349,0.17953767,105130.0,105120.0,0.32449651]
[1737267836141,0.17953767,105130.0,105120.0,0.39479651]
[1737267837439,0.0367,105130.0,105120.0,0.39479651]
[1737267838051,0.08667098,105130.0,105120.0,0.34482553]
[1737267838248,0.44747098,105130.0,105120.0,0.34482553]
[1737267838448,0.08667098,105130.0,105120.0,0.34482553]
[1737267838651,0.08667098,105130.0,105120.0,0.30922553]
[1737267839347,0.44747098,105130.0,105120.0,0.30922553]
[1737267839748,0.59030865,105130.0,105120.0,0.30922553]
[1737267842150,0.54033767,105130.0,105120.0,0.35919651]
[1737267842546,0.3975,105130.0,105120.0,0.35919651]
[1737267844452,0.40688634,105130.0,105120.0,0.35919651]
[1737267844755,0.50447132,105130.0,105120.0,0.30922553]
[1737267844959,0.50447132,105130.0,105120.0,0.27452553]
[1737267845159,0.64730899,105130.0,105120.0,0.27452553]
[1737267845558,0.59733801,105130.0,105120.0,0.32449651]
[1737267848862,0.59733801,105130.0,105120.0,0.27452553]